{"text_format":"1","workbook":"xlsx","n_sheets":2,"sheets":["Feuil1","Feuil2"],"not_rendered":{"charts":0,"images":5,"macros":1,"external_links":0,"defined_names":0,"comments":0,"pivot_tables":0},"unopened":[],"bounds":{"document_bytes":16777216,"sheet_cells":100000,"rows_first":2000,"rows_last":500,"rows_between":2000,"halvings":0,"cell_chars":16384,"cell_head_chars":4096},"cells_cut":0,"cells_raw":0,"read":"whole","date_system":"1900"}

{"sheet":"Feuil1","index":0,"n_rows":93,"n_cols":38,"rows_kept":93,"cut":false,"hidden":false,"merged":[]}
[]
[]
[]
[]
[]
[]
[]
[]
[]
[]
[]
[]
[]
[]
[]
[]
[]
[]
[null,"2016-04-17","2016-04-24","2016-05-01","2016-05-08","2016-05-15","2016-05-22","2016-05-29","2016-06-06","2016-06-13","2016-06-20","2016-06-27","2016-07-04","2016-07-11","2016-07-18","2016-07-25","2016-08-01","2016-08-08","2016-08-15","2016-08-22","2016-08-29","2016-09-05","2016-09-12","2016-09-19","2016-09-26","2016-10-03","2016-10-10","2016-10-17","2016-10-24","2016-10-31","2016-11-07","2016-11-14","2016-11-21","2016-11-28","2016-12-05","2016-12-12","2016-12-19","2016-12-26"]
[null,"2016-04-23","2016-04-30","2016-05-07","2016-05-14","2016-05-21","2016-05-28","2016-06-04","2016-06-11","2016-06-18","2016-06-25","2016-07-02","2016-07-09","2016-07-16","2016-07-23","2016-07-30","2016-08-06","2016-08-13","2016-08-20","2016-08-27","2016-09-03","2016-09-10","2016-09-17","2016-09-24","2016-10-01","2016-10-08","2016-10-15","2016-10-22","2016-10-29","2016-11-05","2016-11-12","2016-11-19","2016-11-26","2016-12-03","2016-12-10","2016-12-17","2016-12-24","2016-12-31"]
["Bastien Michaël"]
["Dostie Mario"]
["Lacombe Yvan"]
["Lecot Olivier"]
["Mulrooney Evan"]
["Poirier Isabelle"]
["Plourde Daniel"]
["Ruel Christian Jr.",null,null,null,"test"]
["Thériault Stéphane"]
[null,null,null,null,"projet"]
["Adams, René","MS Semi-Annuel","ML Semi-Annuel","SU Semi-Annuel","SU Semi-Annuel","SU Semi-Annuel","SU Semi-Annuel","SU Semi-Annuel","SU Semi-Annuel"]
["Aupin, Dany","MDS Inspection Bearing","MDS Inspection Bearing","MDS Inspection Bearing"]
["Berger, Jérôme","MS Semi-Annuel","Gm Semi-Annuel","Gm Semi-Annuel","Gm Semi-Annuel","Gm Semi-Annuel","Gm Semi-Annuel","Gm Semi-Annuel","Gm Semi-Annuel"]
["Belzile, Jérémy ",null,"ML Semi-Annuel","SU Semi-Annuel","SU Semi-Annuel","SU Semi-Annuel","SU Semi-Annuel","SU Semi-Annuel","SU Semi-Annuel"]
["Blanchette, Patrick","ML Semi-Annuel","ML Semi-Annuel"]
["Bond, Kurt","ML Semi-Annuel","Gm Semi-Annuel","Gm Semi-Annuel","Gm Semi-Annuel","Gm Semi-Annuel","Gm Semi-Annuel","Gm Semi-Annuel","Gm Semi-Annuel"]
["Canuel Martin ",null,"ML Semi-Annuel","SU Semi-Annuel","SU Semi-Annuel","SU Semi-Annuel","SU Semi-Annuel","SU Semi-Annuel","SU Semi-Annuel"]
["Chicoine, Joey","MM Support Insp. Pale"]
["Cloutier, Guylain","MS Semi-Annuel","Gm Semi-Annuel","Gm Semi-Annuel","Gm Semi-Annuel","Gm Semi-Annuel","Gm Semi-Annuel","Gm Semi-Annuel","Gm Semi-Annuel"]
["Côté Sébastien","LA Support Senvion","LA Support Senvion","Nordais Maintenance","Nordais Maintenance","Nordais Maintenance","Nordais Maintenance"]
["Cyr, Collin","ML Semi-Annuel","Gm Semi-Annuel","Gm Semi-Annuel","Gm Semi-Annuel","Gm Semi-Annuel","Gm Semi-Annuel","Gm Semi-Annuel","Gm Semi-Annuel"]
["Cyr, John",null,"Gm Semi-Annuel","Gm Semi-Annuel","Gm Semi-Annuel","Gm Semi-Annuel","Gm Semi-Annuel","Gm Semi-Annuel","Gm Semi-Annuel"]
["Cyr, Michaël","MS Semi-Annuel","Gm Semi-Annuel","Gm Semi-Annuel","Gm Semi-Annuel","Gm Semi-Annuel","Gm Semi-Annuel","Gm Semi-Annuel","Gm Semi-Annuel"]
["Devouge, Anthony",null,null,null,null,"Canergy - oaxaca I","Canergy - oaxaca I"]
["Durette, Denis","MS Semi-Annuel","Gm Semi-Annuel","Gm Semi-Annuel","Gm Semi-Annuel","Gm Semi-Annuel","Gm Semi-Annuel","Gm Semi-Annuel","Gm Semi-Annuel"]
["Gagné, Mathieu",null,null,"SU Semi-Annuel","SU Semi-Annuel","SU Semi-Annuel","SU Semi-Annuel","SU Semi-Annuel","SU Semi-Annuel"]
["Gagnon, Luc","LA Support Senvion",null,"SU Semi-Annuel","SU Semi-Annuel","SU Semi-Annuel","SU Semi-Annuel","SU Semi-Annuel","SU Semi-Annuel"]
["Galecki, Brock","GL Saskatchewan O&M","GL Saskatchewan O&M","GL Saskatchewan O&M","GL Saskatchewan O&M","GL Saskatchewan O&M","GL Saskatchewan O&M","GL Saskatchewan O&M","GL Saskatchewan O&M"]
["Gauthier, Stephane","ML Semi-Annuel","ML Semi-Annuel","SU Semi-Annuel","SU Semi-Annuel","SU Semi-Annuel","SU Semi-Annuel","SU Semi-Annuel","SU Semi-Annuel"]
["Knowles, Kent","Digby Support","Digby Support","Gm Semi-Annuel","Gm Semi-Annuel","Gm Semi-Annuel","Gm Semi-Annuel","Gm Semi-Annuel","Gm Semi-Annuel"]
["Lafontaine, J-F","ML Semi-Annuel","ML Semi-Annuel","Nordais Maintenance","Nordais Maintenance","Nordais Maintenance","Nordais Maintenance"]
["Lepage, Alex",null,"Gm Semi-Annuel","Gm Semi-Annuel","Gm Semi-Annuel","Gm Semi-Annuel","Gm Semi-Annuel","Gm Semi-Annuel","Gm Semi-Annuel"]
["Letarte, Pier-Alexandre","MDS Inspection Bearing","MDS Inspection Bearing","MDS Inspection Bearing"]
["Mallet, David","LA Support Senvion","Gm Semi-Annuel","Gm Semi-Annuel","Gm Semi-Annuel","Gm Semi-Annuel","Gm Semi-Annuel","Gm Semi-Annuel","Gm Semi-Annuel"]
["Martel, Vincent","ML Semi-Annuel","ML Semi-Annuel","Nordais Maintenance","Nordais Maintenance","Nordais Maintenance","Nordais Maintenance"]
["Martin, Éric",null,"Gm Semi-Annuel","Gm Semi-Annuel","Gm Semi-Annuel","Gm Semi-Annuel","Gm Semi-Annuel","Gm Semi-Annuel","Gm Semi-Annuel"]
["Matte, Nicolas","MS Semi-Annuel","Gm Semi-Annuel","Gm Semi-Annuel","Gm Semi-Annuel","Gm Semi-Annuel","Gm Semi-Annuel","Gm Semi-Annuel","Gm Semi-Annuel"]
["Mathurin, Simon"]
["McGregor, Harry jr.","MS Semi-Annuel","Gm Semi-Annuel","Gm Semi-Annuel","Gm Semi-Annuel","Gm Semi-Annuel","Gm Semi-Annuel","Gm Semi-Annuel","Gm Semi-Annuel"]
["McIntosh, Zach","GL Saskatchewan O&M","GL Saskatchewan O&M","GL Saskatchewan O&M","GL Saskatchewan O&M","GL Saskatchewan O&M","GL Saskatchewan O&M","GL Saskatchewan O&M","GL Saskatchewan O&M"]
["Millette, Mike","Ontario 6 Pack","Ontario 6 Pack","Ontario 6 Pack","Ontario 6 Pack"]
["Minville, Jean-Claude Jr.","MS Semi-Annuel","Gm Semi-Annuel","Gm Semi-Annuel","Gm Semi-Annuel","Gm Semi-Annuel","Gm Semi-Annuel","Gm Semi-Annuel","Gm Semi-Annuel"]
["Ouellet,Françis","ML Semi-Annuel","ML Semi-Annuel",null,"Prince Align.Girouette","Prince Yaw Puck","Prince Yaw Puck","Prince Yaw Puck",null,null,"Canergy - la Venta II","Canergy - la Venta II","Canergy - la Venta II"]
["Patterson, Richard","MM Support Insp. Pale"]
["Pelletier, David","MDS Inspection Bearing","MDS Inspection Bearing","MDS Inspection Bearing","SU Semi-Annuel","SU Semi-Annuel","SU Semi-Annuel","SU Semi-Annuel","SU Semi-Annuel"]
["Pelletier, Nicolas"]
["Richard, Jean-Sébastien","Ontario 6 Pack","Ontario 6 Pack","Ontario 6 Pack","Ontario 6 Pack","Ontario 6 Pack","Ontario 6 Pack"]
["Riffou, Bobby","MS Semi-Annuel","Gm Semi-Annuel","Gm Semi-Annuel","Gm Semi-Annuel","Gm Semi-Annuel","Gm Semi-Annuel","Gm Semi-Annuel","Gm Semi-Annuel"]
["Rooney, Garry","Ontario 6 Pack","Ontario 6 Pack","Ontario 6 Pack","Ontario 6 Pack","Canergy - la Venta II","Canergy - la Venta II","Canergy - la Venta II","Canergy - la Venta II","Canergy - la Venta II"]
["Savoie, Maxime","ML Semi-Annuel","ML Semi-Annuel","SU Semi-Annuel","SU Semi-Annuel","SU Semi-Annuel","SU Semi-Annuel","SU Semi-Annuel","SU Semi-Annuel"]
["Sirois, Olivier","ML Semi-Annuel","ML Semi-Annuel","SU Semi-Annuel","SU Semi-Annuel","SU Semi-Annuel","SU Semi-Annuel","SU Semi-Annuel","SU Semi-Annuel"]
["Stanley, Justin",null,null,null,null,"Canergy - la Venta II","Canergy - la Venta II","Canergy - la Venta II","OFF"]
["St-Gelais, David","ML Semi-Annuel","ML Semi-Annuel","SU Semi-Annuel","SU Semi-Annuel","SU Semi-Annuel","SU Semi-Annuel","SU Semi-Annuel","SU Semi-Annuel"]
["St-Laurent, Frédéric","ML Semi-Annuel","ML Semi-Annuel","Nordais Maintenance","Nordais Maintenance","Nordais Maintenance","Nordais Maintenance"]
["Synnott, Maxime","MS Semi-Annuel","Gm Semi-Annuel","Gm Semi-Annuel","Gm Semi-Annuel","Gm Semi-Annuel","Gm Semi-Annuel","Gm Semi-Annuel","Gm Semi-Annuel"]
["Thomas, Shawn"]
["Thibault, Jean-Marc jr.","ML Semi-Annuel","Gm Semi-Annuel","Gm Semi-Annuel","Gm Semi-Annuel","Gm Semi-Annuel","Gm Semi-Annuel","Gm Semi-Annuel","Gm Semi-Annuel"]
["Thibault, Kevin","ML Semi-Annuel","ML Semi-Annuel","Alaska Boroscope","Alaska Boroscope","Canergy - la Venta II","Canergy - la Venta II","Canergy - la Venta II","Canergy - la Venta II","Canergy - la Venta II"]
["Thibault, Korey","ML Semi-Annuel","ML Semi-Annuel","LM Formation","Prince Align.Girouette","Prince Yaw Puck","Prince Yaw Puck","Prince Yaw Puck"]
["Vardon, Steven","Travaux Modifié","Travaux Modifié","Travaux Modifié"]
["Vasic, Darko ","Ontario 6 Pack","Ontario 6 Pack","Ontario 6 Pack","Ontario 6 Pack","Ontario 6 Pack","Ontario 6 Pack","Ontario 6 Pack","Ontario 6 Pack"]
[]
["Boulay, Michael","MM Support Insp. Pale",null,"LM Formation","Cap Chat Pale sol","Cap Chat Pale sol","Plateforme Ontario GE","Plateforme Ontario GE"]
["Breton, Patrice","SRB Support EDF","SRB Support EDF","SRB Support EDF","SRB Support EDF","SRB Support EDF","SRB Support EDF"]
["Chaussé Bélanger, Charles",null,null,"LM Formation","Cap Chat Pale sol","Cap Chat Pale sol","Plateforme Ontario GE","Plateforme Ontario GE"]
["Côté, Dave","MDS Inspection Bearing","MDS Inspection Bearing","MDS Inspection Bearing"]
["Fournier, Mathieu","LA Support Senvion","LA Support Senvion",null,"Viger Inspection intérieur","Viger Inspection intérieur"]
["Denis, Frédéric","Gaspé Seal cove","Gaspé Seal cove","LM Formation","Viger Inspection intérieur","Viger Inspection intérieur"]
["Fitzpatrick, Jason","Gaspé Seal cove","Gaspé Seal cove","LM Formation"]
["Horan, Dave","MDS Inspection Bearing","MDS Inspection Bearing","MDS Inspection Bearing","Viger Inspection intérieur","Viger Inspection intérieur"]
["Larouche, Pascal","Maladie","Maladie","Maladie","Maladie","Maladie","Maladie","Maladie","Maladie"]
["Marin, Nelson","Maladie","Maladie","Maladie","Maladie","Maladie","Maladie","Maladie","Maladie"]
["McRae Nick","Gaspé Seal cove","Gaspé Seal cove","LM Formation"]

{"sheet":"Feuil2","index":1,"n_rows":15,"n_cols":35,"rows_kept":15,"cut":false,"hidden":false,"merged":[[0,0,0,9],[9,0,9,9]]}
["Installation Service Lift Complété par semaine"]
["Semaine Débutant","2016-05-09","2016-05-16","2016-05-23","2016-05-30","2016-06-06","2016-06-13","2016-06-20","2016-06-27","2016-07-04","2016-07-11","2016-07-18","2016-07-25","2016-08-01","2016-08-08","2016-08-15","2016-08-22","2016-08-29","2016-09-05","2016-09-12","2016-09-19","2016-09-26","2016-10-03","2016-10-10","2016-10-17","2016-10-24","2016-10-31","2016-11-07","2016-11-14","2016-11-21","2016-11-28","2016-12-05","2016-12-12","2016-12-19","2016-12-26"]
["Semaine Finissant","2016-05-13","2016-05-20","2016-05-27","2016-06-03","2016-06-10","2016-06-17","2016-06-24","2016-07-01","2016-07-08","2016-07-15","2016-07-22","2016-07-29","2016-08-05","2016-08-12","2016-08-19","2016-08-25","2016-09-02","2016-09-10","2016-09-17","2016-09-24","2016-10-01","2016-10-08","2016-10-15","2016-10-22","2016-10-29","2016-11-05","2016-11-12","2016-11-19","2016-11-26","2016-12-03","2016-12-10","2016-12-17","2016-12-24","2016-12-31"]
["Vent Du Kempts",4,5,5,5,5,5,5,5,4]
["St-Damase",null,null,null,null,null,null,null,null,null,5,5]
["Le Plateau II",null,null,null,null,null,null,null,null,null,null,null,4,"CONGÉ",5]
["Des Moulins",null,null,null,null,null,null,null,null,null,null,null,null,null,null,5,4]
["Total Cummulatif",{"$f":"SUM(B4:B7)","v":4},{"$f":"B8+SUM(C4:C7)","v":9},{"$f":"C8+SUM(D4:D7)","v":14},19,24,29,34,39,43,{"$f":"J8+SUM(K4:K7)","v":48},{"$f":"K8+SUM(L4:L7)","v":53},{"$f":"L8+SUM(M4:M7)","v":57},{"$f":"M8+SUM(N4:N7)","v":57},{"$f":"N8+SUM(O4:O7)","v":62},{"$f":"O8+SUM(P4:P7)","v":67},{"$f":"P8+SUM(Q4:Q7)","v":71},{"$f":"Q8+SUM(R4:R7)","v":71},{"$f":"R8+SUM(S4:S7)","v":71},{"$f":"S8+SUM(T4:T7)","v":71},{"$f":"T8+SUM(U4:U7)","v":71},{"$f":"U8+SUM(V4:V7)","v":71},{"$f":"V8+SUM(W4:W7)","v":71},{"$f":"W8+SUM(X4:X7)","v":71},{"$f":"X8+SUM(Y4:Y7)","v":71},{"$f":"Y8+SUM(Z4:Z7)","v":71},{"$f":"Z8+SUM(AA4:AA7)","v":71},{"$f":"AA8+SUM(AB4:AB7)","v":71},{"$f":"AB8+SUM(AC4:AC7)","v":71},{"$f":"AC8+SUM(AD4:AD7)","v":71},{"$f":"AD8+SUM(AE4:AE7)","v":71},{"$f":"AE8+SUM(AF4:AF7)","v":71},{"$f":"AF8+SUM(AG4:AG7)","v":71},{"$f":"AG8+SUM(AH4:AH7)","v":71},{"$f":"AH8+SUM(AI4:AI7)","v":71}]
[]
[" Service Lift monté sur le E-Module 85M Complété par semaine"]
["Semaine Débutant","2016-05-09","2016-05-16","2016-05-23","2016-05-30","2016-06-06","2016-06-13","2016-06-20","2016-06-27","2016-07-04","2016-07-11","2016-07-18","2016-07-25","2016-08-01","2016-08-08","2016-08-15","2016-08-22","2016-08-29","2016-09-05","2016-09-12","2016-09-19","2016-09-26","2016-10-03","2016-10-10","2016-10-17","2016-10-24","2016-10-31","2016-11-07","2016-11-14","2016-11-21","2016-11-28","2016-12-05","2016-12-12","2016-12-19","2016-12-26"]
["Semaine Finissant","2016-05-13","2016-05-20","2016-05-27","2016-06-03","2016-06-10","2016-06-17","2016-06-24","2016-07-01","2016-07-08","2016-07-15","2016-07-22","2016-07-29","2016-08-05","2016-08-12","2016-08-19","2016-08-25","2016-09-02","2016-09-10","2016-09-17","2016-09-24","2016-10-01","2016-10-08","2016-10-15","2016-10-22","2016-10-29","2016-11-05","2016-11-12","2016-11-19","2016-11-26","2016-12-03","2016-12-10","2016-12-17","2016-12-24","2016-12-31"]
["Le Plateau II",null,null,null,null,null,8,1]
["Des Moulins",null,null,null,null,null,null,9]
["Total Cummulatif",null,null,null,null,null,8,10]